[Event "48th Indian U15-ch Open 2023"]
[Site "Jalgaon"]
[Date "2023.12.29"]
[Round "4.1"]
[White "Sureka Akshat"]
[Black "Mayank Chakraborty"]
[Result "1/2-1/2"]
[WhiteElo "1808"]
[BlackElo "2403"]
[PlyCount "108"]
[EventDate "2023.12.30"]
[EventType "swiss"]
[EventCountry "IND"]
[TimeControl "5400+30"]

1. e4 {[%emt 0:00:33]} e5 {[%emt 0:00:01]} 2. Nf3 {[%emt 0:00:09]} Nc6 {[%emt 0:00:02]} 3. Bb5 {[%emt 0:00:16]} a6 {[%emt 0:00:02]} 4. Bxc6 {[%emt 0:00:08]} dxc6 {[%emt 0:00:10]} 5. O-O {[%emt 0:00:07]} Qf6 {[%emt 0:00:53]} 6. d3 {[%emt 0:01:32]} Ne7 {[%emt 0:03:14]} 7. Bg5 {[%emt 0:12:58]} Qd6 {[%emt 0:01:38]} 8. Nbd2 {[%emt 0:01:03]} Be6 {[%emt 0:01:44]} 9. Nc4 {[%emt 0:07:00]} Bxc4 {[%emt 0:00:14]} 10. dxc4 {[%emt 0:00:02]} f6 {[%emt 0:02:48]} 11. Be3 {[%emt 0:08:24]} g5 {[%emt 0:12:53]} 12. Qe2 {[%emt 0:06:07]} Ng6 {[%emt 0:00:45]} 13. Nd2 {[%emt 0:05:02]} Qe6 {[%emt 0:02:23]} 14. Qh5 {[%emt 0:06:41]} O-O-O {[%emt 0:00:14]} 15. Rfd1 {[%emt 0:01:52]} Bb4 {[%emt 0:03:28]} 16. c3 {[%emt 0:01:13]} Be7 {[%emt 0:00:08]} 17. Qe2 {[%emt 0:11:12]} g4 {[%emt 0:06:32]} 18. b4 {[%emt 0:02:07]} h5 {[%emt 0:02:57]} 19. b5 {[%emt 0:01:12]} cxb5 {[%emt 0:06:41]} 20. cxb5 {[%emt 0:00:02]} Nf4 {[%emt 0:01:18]} 21. Bxf4 {[%emt 0:01:06]} exf4 {[%emt 0:00:02]} 22. bxa6 {[%emt 0:03:15]} Qxa6 {[%emt 0:00:07]} 23. Qxa6 {[%emt 0:00:04]} bxa6 {[%emt 0:00:06]} 24. Nb3 {[%emt 0:00:12]} Ba3 {[%emt 0:02:36]} 25. Rab1 {[%emt 0:01:46]} Bb2 {[%emt 0:00:44]} 26. c4 {[%emt 0:01:56]} Bc3 {[%emt 0:12:38]} 27. Nc5 {[%emt 0:02:50]} a5 {[%emt 0:01:55]} 28. Kf1 {[%emt 0:04:33]} f3 {[%emt 0:02:46]} 29. Rd5 {[%emt 0:04:22]} Be5 {[%emt 0:12:18]} 30. gxf3 {[%emt 0:03:00]} gxf3 {[%emt 0:00:06]} 31. Rb3 {[%emt 0:00:32]} c6 {[%emt 0:05:10]} 32. Rxd8+ {[%emt 0:00:16]} Rxd8 {[%emt 0:00:01]} 33. Rxf3 {[%emt 0:00:17]} Rd4 {[%emt 0:00:42]} 34. Nb3 {[%emt 0:09:17]} Rxc4 {[%emt 0:08:38]} 35. Nxa5 {[%emt 0:00:10]} Rc2 {[%emt 0:00:35]} 36. Rf5 {[%emt 0:02:39]} Kc7 {[%emt 0:02:47]} 37. f4 {[%emt 0:02:35]} Bd4 {[%emt 0:00:35]} 38. Nb3 {[%emt 0:00:12]} Be3 {[%emt 0:00:34]} 39. Rxf6 {[%emt 0:00:54]} Rxh2 {[%emt 0:02:58]} 40. Na5 {[%emt 0:00:51]} c5 {[%emt 0:02:24]} 41. Rf7+ {[%emt 0:00:57]} Kd6 {[%emt 0:00:06]} 42. e5+ {[%emt 0:00:18]} Kd5 {[%emt 0:00:09]} 43. Rd7+ {[%emt 0:00:12]} Ke4 {[%emt 0:00:33]} 44. Ke1 {[%emt 0:01:11]} Kf3 {[%emt 0:01:40]} 45. Kd1 {[%emt 0:00:04]} Bxf4 {[%emt 0:01:00]} 46. e6 {[%emt 0:00:44]} Rh1+ {[%emt 0:00:21]} 47. Kc2 {[%emt 0:00:08]} Re1 {[%emt 0:00:49]} 48. Rh7 {[%emt 0:00:16]} Kg4 {[%emt 0:01:01]} 49. e7 {[%emt 0:00:05]} h4 {[%emt 0:00:47]} 50. Nc6 {[%emt 0:01:20]} h3 {[%emt 0:00:18]} 51. a4 {[%emt 0:00:31]} h2 {[%emt 0:01:37]} 52. a5 {[%emt 0:00:17]} Bg3 {[%emt 0:00:12]} 53. Rxh2 {[%emt 0:00:34]} Bxh2 {[%emt 0:00:04]} 54. a6 {[%emt 0:00:04]} Bb8 {[%emt 0:00:07]} 1/2-1/2

[Event "48th Indian U15-ch Open 2023"]
[Site "Jalgaon"]
[Date "2023.12.29"]
[Round "4.2"]
[White "Shaik Sumer Arsh"]
[Black "Bhoir Paras Dilip"]
[Result "0-1"]
[WhiteElo "2255"]
[BlackElo "1808"]
[PlyCount "86"]
[EventDate "2023.12.30"]
[EventType "swiss"]
[EventCountry "IND"]
[TimeControl "5400+30"]

1. d4 {[%emt 0:00:09]} d5 {[%emt 0:00:12]} 2. c4 {[%emt 0:00:09]} e6 {[%emt 0:00:11]} 3. Nc3 {[%emt 0:00:33]} c6 {[%emt 0:00:10]} 4. e3 {[%emt 0:00:13]} Nf6 {[%emt 0:00:14]} 5. Nf3 {[%emt 0:00:05]} Nbd7 {[%emt 0:00:07]} 6. Be2 {[%emt 0:00:16]} Bd6 {[%emt 0:01:37]} 7. O-O {[%emt 0:00:19]} O-O {[%emt 0:00:43]} 8. b3 {[%emt 0:00:12]} b6 {[%emt 0:03:24]} 9. Bb2 {[%emt 0:00:13]} Bb7 {[%emt 0:00:36]} 10. Bd3 {[%emt 0:00:08]} Qe7 {[%emt 0:06:07]} 11. Re1 {[%emt 0:00:09]} c5 {[%emt 0:10:35]} 12. cxd5 {[%emt 0:03:08]} exd5 {[%emt 0:01:12]} 13. Bf5 {[%emt 0:27:55]} Rfe8 {[%emt 0:10:42]} 14. Nb5 {[%emt 0:18:59]} Bb8 {[%emt 0:01:59]} 15. Qc2 {[%emt 0:01:20]} Ne4 {[%emt 0:06:09]} 16. Red1 {[%emt 0:08:18]} Ndf6 {[%emt 0:07:41]} 17. Rac1 {[%emt 0:09:04]} g6 {[%emt 0:08:56]} 18. Bh3 {[%emt 0:02:57]} h5 {[%emt 0:03:10]} 19. dxc5 {[%emt 0:09:18]} bxc5 {[%emt 0:01:46]} 20. Nc3 {[%emt 0:00:51]} Bd6 {[%emt 0:05:50]} 21. Ba1 {[%emt 0:02:30]} d4 {[%emt 0:05:09]} 22. exd4 {[%emt 0:02:50]} Bf4 {[%emt 0:00:49]} 23. Rb1 {[%emt 0:06:43]} Nxf2 {[%emt 0:01:57]} 24. Rf1 {[%emt 0:04:23]} Nxh3+ {[%emt 0:01:38]} 25. gxh3 {[%emt 0:00:01]} cxd4 {[%emt 0:01:29]} 26. Nd1 {[%emt 0:00:47]} Be4 {[%emt 0:00:38]} 27. Qb2 {[%emt 0:00:09]} Bxb1 {[%emt 0:00:54]} 28. Qxb1 {[%emt 0:01:19]} Rad8 {[%emt 0:01:55]} 29. Qd3 {[%emt 0:00:43]} Qe2 {[%emt 0:02:03]} 30. Qxe2 {[%emt 0:00:28]} Rxe2 {[%emt 0:00:07]} 31. Rf2 {[%emt 0:01:07]} Rxf2 {[%emt 0:00:32]} 32. Nxf2 {[%emt 0:00:27]} Be3 {[%emt 0:00:06]} 33. Kf1 {[%emt 0:00:14]} Bxf2 {[%emt 0:00:54]} 34. Kxf2 {[%emt 0:00:01]} Ne4+ {[%emt 0:00:13]} 35. Ke1 {[%emt 0:00:31]} d3 {[%emt 0:00:14]} 36. Bd4 {[%emt 0:00:10]} Rc8 {[%emt 0:00:40]} 37. Kd1 {[%emt 0:00:35]} Rc2 {[%emt 0:01:35]} 38. a4 {[%emt 0:00:23]} a5 {[%emt 0:01:33]} 39. h4 {[%emt 0:00:51]} Nf2+ {[%emt 0:00:48]} 40. Ke1 {[%emt 0:01:09]} Re2+ {[%emt 0:00:10]} 41. Kf1 {[%emt 0:00:01]} Ne4 {[%emt 0:00:08]} 42. Bb6 {[%emt 0:00:58]} Rb2 {[%emt 0:00:07]} 43. Bxa5 {[%emt 0:00:31]} Rf2+ {[%emt 0:00:11]} 0-1

[Event "48th Indian U15-ch Open 2023"]
[Site "Jalgaon"]
[Date "2023.12.29"]
[Round "4.3"]
[White "Madhvendra Pratap Sharma"]
[Black "Md Imran"]
[Result "0-1"]
[WhiteElo "1803"]
[BlackElo "2174"]
[PlyCount "114"]
[EventDate "2023.12.30"]
[EventType "swiss"]
[EventCountry "IND"]
[TimeControl "5400+30"]

1. e4 {[%emt 0:00:25]} c5 {[%emt 0:00:19]} 2. Nf3 {[%emt 0:00:12]} Nc6 {[%emt 0:00:08]} 3. d4 {[%emt 0:00:11]} cxd4 {[%emt 0:00:09]} 4. Nxd4 {[%emt 0:00:08]} Qb6 {[%emt 0:00:04]} 5. Nb5 {[%emt 0:01:43]} Nf6 {[%emt 0:01:43]} 6. Be3 {[%emt 0:00:41]} Qd8 {[%emt 0:00:53]} 7. Bc4 {[%emt 0:14:32]} a6 {[%emt 0:09:07]} 8. N5c3 {[%emt 0:00:46]} e6 {[%emt 0:04:48]} 9. Bb3 {[%emt 0:05:34]} b5 {[%emt 0:01:29]} 10. Qe2 {[%emt 0:07:24]} Bb7 {[%emt 0:00:35]} 11. O-O {[%emt 0:02:46]} Qc7 {[%emt 0:04:01]} 12. Nd2 {[%emt 0:05:20]} Na5 {[%emt 0:03:18]} 13. a3 {[%emt 0:09:49]} Be7 {[%emt 0:06:05]} 14. h3 {[%emt 0:02:58]} O-O {[%emt 0:00:15]} 15. Bg5 {[%emt 0:04:43]} d6 {[%emt 0:01:34]} 16. Rad1 {[%emt 0:04:41]} h6 {[%emt 0:01:02]} 17. Bf4 {[%emt 0:01:42]} Nxb3 {[%emt 0:01:11]} 18. Nxb3 {[%emt 0:00:41]} Rfd8 {[%emt 0:00:36]} 19. Rd3 {[%emt 0:01:55]} e5 {[%emt 0:01:03]} 20. Bg3 {[%emt 0:00:37]} a5 {[%emt 0:01:02]} 21. Nxb5 {[%emt 0:09:39]} Qc4 {[%emt 0:07:23]} 22. Re3 {[%emt 0:03:28]} Qxe2 {[%emt 0:00:11]} 23. Rxe2 {[%emt 0:00:02]} Nxe4 {[%emt 0:00:14]} 24. Nd2 {[%emt 0:02:52]} Nxg3 {[%emt 0:00:31]} 25. fxg3 {[%emt 0:00:01]} Rac8 {[%emt 0:00:41]} 26. c4 {[%emt 0:00:27]} d5 {[%emt 0:01:59]} 27. cxd5 {[%emt 0:02:05]} Rc2 {[%emt 0:01:58]} 28. Rd1 {[%emt 0:05:12]} Ba6 {[%emt 0:01:30]} 29. a4 {[%emt 0:00:53]} Rxd5 {[%emt 0:00:02]} 30. Kh2 {[%emt 0:00:30]} Rd8 {[%emt 0:05:18]} 31. Rf2 {[%emt 0:00:49]} Rxb2 {[%emt 0:02:09]} 32. Ne4 {[%emt 0:01:24]} Rxf2 {[%emt 0:00:53]} 33. Rxd8+ {[%emt 0:00:28]} Bxd8 {[%emt 0:00:02]} 34. Nxf2 {[%emt 0:00:02]} Bxb5 {[%emt 0:00:11]} 35. axb5 {[%emt 0:00:03]} a4 {[%emt 0:00:05]} 36. Nd3 {[%emt 0:00:53]} a3 {[%emt 0:00:20]} 37. Nc1 {[%emt 0:01:34]} f5 {[%emt 0:00:05]} 38. Kg1 {[%emt 0:00:31]} Kf7 {[%emt 0:00:05]} 39. Kf2 {[%emt 0:00:22]} Ke6 {[%emt 0:00:01]} 40. Na2 {[%emt 0:01:12]} Kd5 {[%emt 0:00:09]} 41. Ke3 {[%emt 0:00:22]} Kc4 {[%emt 0:00:07]} 42. g4 {[%emt 0:00:15]} Bb6+ {[%emt 0:00:08]} 43. Kf3 {[%emt 0:00:05]} e4+ {[%emt 0:00:11]} 44. Kf4 {[%emt 0:00:06]} g5+ {[%emt 0:00:05]} 45. Kxf5 {[%emt 0:00:39]} e3 {[%emt 0:00:11]} 46. Nc1 {[%emt 0:00:05]} e2 {[%emt 0:00:04]} 47. Nxe2 {[%emt 0:00:04]} a2 {[%emt 0:00:03]} 48. Ng3 {[%emt 0:00:08]} a1=Q {[%emt 0:00:05]} 49. Ne4 {[%emt 0:00:08]} Qf1+ {[%emt 0:00:14]} 50. Kg6 {[%emt 0:00:06]} Qb1 {[%emt 0:00:04]} 51. Kf5 {[%emt 0:00:09]} Kd5 {[%emt 0:00:05]} 52. g3 {[%emt 0:00:08]} Qxe4+ {[%emt 0:00:02]} 53. Kf6 {[%emt 0:00:06]} Bd4+ {[%emt 0:00:04]} 54. Kf7 {[%emt 0:00:07]} Qe6+ {[%emt 0:00:01]} 55. Kf8 {[%emt 0:00:09]} Qd7 {[%emt 0:00:01]} 56. b6 {[%emt 0:00:08]} Ke6 {[%emt 0:00:01]} 57. b7 {[%emt 0:00:05]} Qd8# {[%emt 0:00:11]} 0-1

[Event "48th Indian U15-ch Open 2023"]
[Site "Jalgaon"]
[Date "2023.12.29"]
[Round "4.4"]
[White "Bivor Adak"]
[Black "Samyak Dharewa"]
[Result "1/2-1/2"]
[WhiteElo "1791"]
[BlackElo "1939"]
[PlyCount "72"]
[EventDate "2023.12.30"]
[EventType "swiss"]
[EventCountry "IND"]
[TimeControl "5400+30"]

1. e4 {[%emt 0:00:10]} c5 {[%emt 0:00:10]} 2. Nf3 {[%emt 0:00:23]} e6 {[%emt 0:00:02]} 3. d4 {[%emt 0:01:14]} cxd4 {[%emt 0:00:10]} 4. Nxd4 {[%emt 0:00:10]} a6 {[%emt 0:00:07]} 5. Bd3 {[%emt 0:01:13]} Nf6 {[%emt 0:00:14]} 6. O-O {[%emt 0:01:17]} Qc7 {[%emt 0:00:11]} 7. Qe2 {[%emt 0:01:55]} d6 {[%emt 0:01:23]} 8. f4 {[%emt 0:01:09]} g6 {[%emt 0:00:47]} 9. Nc3 {[%emt 0:01:05]} Bg7 {[%emt 0:00:52]} 10. e5 {[%emt 0:00:45]} Nfd7 {[%emt 0:17:44]} 11. f5 {[%emt 0:34:19]} Nxe5 {[%emt 0:00:19]} 12. fxe6 {[%emt 0:00:54]} Bxe6 {[%emt 0:02:50]} 13. Nxe6 {[%emt 0:00:51]} fxe6 {[%emt 0:00:07]} 14. Ne4 {[%emt 0:02:11]} Nbc6 {[%emt 0:00:53]} 15. Bg5 {[%emt 0:01:06]} Nd4 {[%emt 0:06:02]} 16. Qd2 {[%emt 0:03:49]} Nf5 {[%emt 0:01:17]} 17. Rxf5 {[%emt 0:16:45]} exf5 {[%emt 0:07:57]} 18. Nxd6+ {[%emt 0:00:09]} Kf8 {[%emt 0:00:29]} 19. Bxf5 {[%emt 0:02:00]} h6 {[%emt 0:17:35]} 20. Rf1 {[%emt 0:09:13]} Kg8 {[%emt 0:00:52]} 21. Bf4 {[%emt 0:06:53]} gxf5 {[%emt 0:01:51]} 22. Qd5+ {[%emt 0:02:03]} Kh7 {[%emt 0:06:08]} 23. Bxe5 {[%emt 0:00:12]} Bxe5 {[%emt 0:00:33]} 24. Qxe5 {[%emt 0:00:11]} Rhf8 {[%emt 0:01:26]} 25. Qe6 {[%emt 0:03:37]} Rad8 {[%emt 0:02:17]} 26. Nxf5 {[%emt 0:01:08]} Qc5+ {[%emt 0:00:15]} 27. Ne3 {[%emt 0:00:02]} Rxf1+ {[%emt 0:03:39]} 28. Kxf1 {[%emt 0:00:08]} Rf8+ {[%emt 0:00:10]} 29. Ke1 {[%emt 0:00:07]} Qb4+ {[%emt 0:00:48]} 30. c3 {[%emt 0:00:06]} Qf4 {[%emt 0:01:17]} 31. Ke2 {[%emt 0:02:12]} Rf7 {[%emt 0:02:28]} 32. h3 {[%emt 0:00:56]} Qf6 {[%emt 0:01:23]} 33. Qe4+ {[%emt 0:00:19]} Qg6 {[%emt 0:00:11]} 34. Qe5 {[%emt 0:02:57]} Rd7 {[%emt 0:01:12]} 35. g4 {[%emt 0:00:41]} Qd3+ {[%emt 0:02:23]} 36. Kf3 {[%emt 0:00:06]} Rf7+ {[%emt 0:04:48]} 1/2-1/2

[Event "48th Indian U15-ch Open 2023"]
[Site "Jalgaon"]
[Date "2023.12.29"]
[Round "4.5"]
[White "Ashwinth Michael"]
[Black "Arshpreet Singh"]
[Result "0-1"]
[WhiteElo "1661"]
[BlackElo "1878"]
[PlyCount "120"]
[EventDate "2023.12.30"]
[EventType "swiss"]
[EventCountry "IND"]
[TimeControl "5400+30"]

1. e4 {[%emt 0:00:02]} c5 {[%emt 0:03:44]} 2. Nf3 {[%emt 0:00:11]} Nc6 {[%emt 0:00:04]} 3. Bb5 {[%emt 0:00:08]} Nf6 {[%emt 0:00:06]} 4. Nc3 {[%emt 0:00:42]} Nd4 {[%emt 0:00:29]} 5. Bc4 {[%emt 0:02:12]} d6 {[%emt 0:01:43]} 6. h3 {[%emt 0:01:26]} a6 {[%emt 0:01:45]} 7. a4 {[%emt 0:01:26]} Qa5 {[%emt 0:01:13]} 8. d3 {[%emt 0:10:03]} b5 {[%emt 0:01:06]} 9. Bd5 {[%emt 0:01:47]} Nxd5 {[%emt 0:01:03]} 10. exd5 {[%emt 0:00:18]} b4 {[%emt 0:00:20]} 11. Ne4 {[%emt 0:06:21]} b3+ {[%emt 0:00:54]} 12. Bd2 {[%emt 0:00:40]} bxc2 {[%emt 0:00:07]} 13. Bxa5 {[%emt 0:01:29]} cxd1=Q+ {[%emt 0:00:14]} 14. Rxd1 {[%emt 0:00:05]} Nxf3+ {[%emt 0:00:42]} 15. gxf3 {[%emt 0:00:06]} Bb7 {[%emt 0:00:29]} 16. Nc3 {[%emt 0:07:31]} e6 {[%emt 0:01:07]} 17. d4 {[%emt 0:03:46]} c4 {[%emt 0:00:13]} 18. b4 {[%emt 0:09:06]} cxb3 {[%emt 0:00:24]} 19. Rb1 {[%emt 0:00:14]} exd5 {[%emt 0:00:15]} 20. Rxb3 {[%emt 0:00:06]} Bc6 {[%emt 0:00:02]} 21. Kd2 {[%emt 0:03:14]} Kd7 {[%emt 0:00:11]} 22. Kd3 {[%emt 0:03:37]} Be7 {[%emt 0:02:39]} 23. Rhb1 {[%emt 0:00:35]} Bf6 {[%emt 0:02:23]} 24. Ne2 {[%emt 0:02:33]} Ke6 {[%emt 0:03:38]} 25. f4 {[%emt 0:12:41]} Bxa4 {[%emt 0:03:04]} 26. f5+ {[%emt 0:01:04]} Kxf5 {[%emt 0:00:19]} 27. Ng3+ {[%emt 0:00:04]} Kg6 {[%emt 0:00:15]} 28. Rb6 {[%emt 0:01:16]} Bb5+ {[%emt 0:13:32]} 29. Ke3 {[%emt 0:09:01]} Rhe8+ {[%emt 0:00:48]} 30. Kf3 {[%emt 0:00:18]} Bd8 {[%emt 0:00:32]} 31. Rxd6+ {[%emt 0:00:18]} f6 {[%emt 0:00:07]} 32. Bxd8 {[%emt 0:01:04]} Raxd8 {[%emt 0:00:06]} 33. Rxd8 {[%emt 0:00:33]} Rxd8 {[%emt 0:00:02]} 34. Rc1 {[%emt 0:00:16]} Bc4 {[%emt 0:00:22]} 35. Rb1 {[%emt 0:00:21]} a5 {[%emt 0:00:19]} 36. Rb7 {[%emt 0:00:37]} Ra8 {[%emt 0:00:08]} 37. Kf4 {[%emt 0:00:32]} f5 {[%emt 0:02:27]} 38. Nxf5 {[%emt 0:01:54]} a4 {[%emt 0:00:40]} 39. Ke5 {[%emt 0:06:31]} Re8+ {[%emt 0:02:19]} 40. Ne7+ {[%emt 0:00:59]} Kf7 {[%emt 0:04:35]} 41. Kd6 {[%emt 0:00:10]} Kf8 {[%emt 0:00:13]} 42. Ra7 {[%emt 0:00:41]} a3 {[%emt 0:00:10]} 43. Nf5 {[%emt 0:00:06]} a2 {[%emt 0:02:31]} 44. Ne3 {[%emt 0:00:16]} Bb3 {[%emt 0:00:16]} 45. Kc5 {[%emt 0:03:54]} Rc8+ {[%emt 0:00:37]} 46. Kb4 {[%emt 0:00:04]} Rc1 {[%emt 0:00:06]} 47. Kxb3 {[%emt 0:00:38]} a1=Q {[%emt 0:00:04]} 48. Rxa1 {[%emt 0:00:06]} Rxa1 {[%emt 0:00:11]} 49. Nxd5 {[%emt 0:00:03]} Rh1 {[%emt 0:00:06]} 50. Kc4 {[%emt 0:00:26]} Rxh3 {[%emt 0:00:09]} 51. f4 {[%emt 0:00:06]} h5 {[%emt 0:00:19]} 52. Kc5 {[%emt 0:00:11]} h4 {[%emt 0:00:41]} 53. Nc7 {[%emt 0:00:19]} Rc3+ {[%emt 0:00:28]} 54. Kd6 {[%emt 0:00:10]} h3 {[%emt 0:00:20]} 55. Ne6+ {[%emt 0:00:03]} Kg8 {[%emt 0:00:04]} 56. Ke7 {[%emt 0:00:12]} h2 {[%emt 0:00:10]} 57. d5 {[%emt 0:00:01]} h1=Q {[%emt 0:00:13]} 58. d6 {[%emt 0:00:05]} Qh4+ {[%emt 0:00:07]} 59. Ke8 {[%emt 0:00:57]} Re3 {[%emt 0:00:06]} 60. f5 {[%emt 0:00:14]} Qf6 {[%emt 0:00:06]} 0-1

[Event "48th Indian U15-ch Open 2023"]
[Site "Jalgaon"]
[Date "2023.12.29"]
[Round "4.6"]
[White "Vignesh Advaith Vemula"]
[Black "Jaidambareesh N R"]
[Result "1-0"]
[WhiteElo "2028"]
[BlackElo "1757"]
[PlyCount "141"]
[EventDate "2023.12.30"]
[EventType "swiss"]
[EventCountry "IND"]
[TimeControl "5400+30"]

1. e4 {[%emt 0:00:07]} c5 {[%emt 0:04:15]} 2. Nf3 {[%emt 0:00:08]} Nc6 {[%emt 0:00:11]} 3. d4 {[%emt 0:00:07]} cxd4 {[%emt 0:00:08]} 4. Nxd4 {[%emt 0:00:06]} Nf6 {[%emt 0:00:20]} 5. Nc3 {[%emt 0:00:06]} e5 {[%emt 0:00:17]} 6. Ndb5 {[%emt 0:00:06]} d6 {[%emt 0:00:08]} 7. Bg5 {[%emt 0:00:15]} a6 {[%emt 0:00:36]} 8. Na3 {[%emt 0:00:06]} b5 {[%emt 0:00:08]} 9. Nd5 {[%emt 0:00:06]} Be7 {[%emt 0:00:08]} 10. Bxf6 {[%emt 0:00:07]} Bxf6 {[%emt 0:00:07]} 11. c4 {[%emt 0:00:05]} b4 {[%emt 0:00:09]} 12. Nc2 {[%emt 0:00:06]} O-O {[%emt 0:01:15]} 13. g3 {[%emt 0:02:25]} a5 {[%emt 0:00:42]} 14. h4 {[%emt 0:00:13]} g6 {[%emt 0:01:05]} 15. Bh3 {[%emt 0:00:50]} Bb7 {[%emt 0:05:55]} 16. O-O {[%emt 0:03:48]} Bg7 {[%emt 0:01:17]} 17. Qd3 {[%emt 0:02:10]} Ne7 {[%emt 0:13:14]} 18. Nce3 {[%emt 0:02:29]} Kh8 {[%emt 0:02:22]} 19. Nxe7 {[%emt 0:05:42]} Qxe7 {[%emt 0:00:27]} 20. Rfd1 {[%emt 0:00:11]} Rad8 {[%emt 0:05:19]} 21. Rac1 {[%emt 0:04:24]} Qc7 {[%emt 0:04:54]} 22. Rc2 {[%emt 0:06:29]} Qc5 {[%emt 0:04:21]} 23. Nd5 {[%emt 0:02:14]} Rde8 {[%emt 0:05:43]} 24. Ne3 {[%emt 0:02:09]} Bh6 {[%emt 0:04:08]} 25. Re2 {[%emt 0:04:15]} f5 {[%emt 0:06:44]} 26. Qxd6 {[%emt 0:12:32]} Qxd6 {[%emt 0:04:42]} 27. Rxd6 {[%emt 0:01:18]} Bxe4 {[%emt 0:00:09]} 28. Bg2 {[%emt 0:01:17]} Bb1 {[%emt 0:05:06]} 29. b3 {[%emt 0:00:43]} f4 {[%emt 0:04:21]} 30. Ng4 {[%emt 0:00:17]} Bg7 {[%emt 0:00:03]} 31. Be4 {[%emt 0:00:50]} Bxe4 {[%emt 0:04:07]} 32. Rxe4 {[%emt 0:00:07]} h5 {[%emt 0:00:10]} 33. Nh2 {[%emt 0:00:46]} fxg3 {[%emt 0:00:12]} 34. fxg3 {[%emt 0:00:11]} Rd8 {[%emt 0:00:07]} 35. Rxd8 {[%emt 0:00:25]} Rxd8 {[%emt 0:00:07]} 36. Nf3 {[%emt 0:00:09]} Rd3 {[%emt 0:00:57]} 37. Kf2 {[%emt 0:00:20]} Rc3 {[%emt 0:00:12]} 38. Re3 {[%emt 0:01:13]} Rc1 {[%emt 0:03:02]} 39. Re1 {[%emt 0:02:09]} Rc3 {[%emt 0:00:00]} 40. Ng5 {[%emt 0:03:13]} a4 {[%emt 0:04:15]} 41. Ne4 {[%emt 0:00:37]} Rc2+ {[%emt 0:01:37]} 42. Re2 {[%emt 0:00:06]} axb3 {[%emt 0:00:05]} 43. axb3 {[%emt 0:00:05]} Rc1 {[%emt 0:00:07]} 44. Rd2 {[%emt 0:03:36]} Bh6 {[%emt 0:08:39]} 45. Rd8+ {[%emt 0:05:22]} Kg7 {[%emt 0:00:00]} 46. Rd7+ {[%emt 0:01:01]} Kg8 {[%emt 0:00:00]} 47. Rb7 {[%emt 0:01:05]} Rc2+ {[%emt 0:00:00]} 48. Ke1 {[%emt 0:00:27]} Be3 {[%emt 0:00:00]} 49. Kd1 {[%emt 0:02:01]} Rg2 {[%emt 0:06:10]} 50. Rxb4 {[%emt 0:00:35]} Kf7 {[%emt 0:00:14]} 51. c5 {[%emt 0:00:56]} Ke6 {[%emt 0:03:29]} 52. c6 {[%emt 0:00:40]} Rg1+ {[%emt 0:00:48]} 53. Ke2 {[%emt 0:00:06]} Bd4 {[%emt 0:00:34]} 54. Rc4 {[%emt 0:00:31]} Bb6 {[%emt 0:02:58]} 55. c7 {[%emt 0:00:18]} Bxc7 {[%emt 0:00:05]} 56. Rxc7 {[%emt 0:00:05]} Kf5 {[%emt 0:00:06]} 57. Kf2 {[%emt 0:00:51]} Rb1 {[%emt 0:00:05]} 58. Nd2 {[%emt 0:00:12]} Rb2 {[%emt 0:00:05]} 59. Ke3 {[%emt 0:00:05]} Kg4 {[%emt 0:00:04]} 60. Kd3 {[%emt 0:01:33]} Kxg3 {[%emt 0:00:05]} 61. Ra7 {[%emt 0:00:06]} e4+ {[%emt 0:01:28]} 62. Kc3 {[%emt 0:00:38]} Rxb3+ {[%emt 0:00:05]} 63. Kxb3 {[%emt 0:00:09]} e3 {[%emt 0:00:26]} 64. Nf1+ {[%emt 0:00:05]} Kxh4 {[%emt 0:00:08]} 65. Nxe3 {[%emt 0:00:05]} g5 {[%emt 0:00:08]} 66. Kc3 {[%emt 0:00:17]} Kg3 {[%emt 0:00:07]} 67. Kd3 {[%emt 0:00:05]} h4 {[%emt 0:00:05]} 68. Ke2 {[%emt 0:00:07]} h3 {[%emt 0:01:00]} 69. Rh7 {[%emt 0:00:07]} g4 {[%emt 0:00:10]} 70. Nxg4 {[%emt 0:00:06]} Kxg4 {[%emt 0:00:05]} 71. Kf2 {[%emt 0:00:03]} 1-0

[Event "48th Indian U15-ch Open 2023"]
[Site "Jalgaon"]
[Date "2023.12.29"]
[Round "4.7"]
[White "Pavan Karthikeya Varma Gunturi"]
[Black "Vivaan Vijay Saraogi"]
[Result "1-0"]
[WhiteElo "1538"]
[BlackElo "1982"]
[PlyCount "113"]
[EventDate "2023.12.30"]
[EventType "swiss"]
[EventCountry "IND"]
[TimeControl "5400+30"]

1. e4 {[%emt 0:00:12]} c5 {[%emt 0:04:00]} 2. Nc3 {[%emt 0:00:27]} Nc6 {[%emt 0:00:08]} 3. Bb5 {[%emt 0:00:22]} g6 {[%emt 0:05:40]} 4. Bxc6 {[%emt 0:01:56]} dxc6 {[%emt 0:00:46]} 5. d3 {[%emt 0:01:13]} Bg7 {[%emt 0:01:47]} 6. f4 {[%emt 0:01:37]} c4 {[%emt 0:12:28]} 7. Be3 {[%emt 0:07:17]} cxd3 {[%emt 0:01:57]} 8. cxd3 {[%emt 0:02:47]} Qa5 {[%emt 0:06:37]} 9. Qd2 {[%emt 0:08:21]} Be6 {[%emt 0:03:27]} 10. Nge2 {[%emt 0:17:57]} O-O-O {[%emt 0:01:59]} 11. O-O {[%emt 0:05:54]} Nf6 {[%emt 0:21:34]} 12. b4 {[%emt 0:18:28]} Qxb4 {[%emt 0:14:42]} 13. Rab1 {[%emt 0:00:21]} Qa3 {[%emt 0:04:59]} 14. Qc2 {[%emt 0:04:29]} Ng4 {[%emt 0:01:18]} 15. Rf3 {[%emt 0:03:48]} Nxe3 {[%emt 0:01:50]} 16. Rxe3 {[%emt 0:00:23]} Qc5 {[%emt 0:00:52]} 17. Kf2 {[%emt 0:00:55]} Bxa2 {[%emt 0:03:23]} 18. Qxa2 {[%emt 0:02:09]} Rxd3 {[%emt 0:04:13]} 19. Nd1 {[%emt 0:01:41]} Rhd8 {[%emt 0:00:46]} 20. Qxf7 {[%emt 0:03:30]} Rxd1 {[%emt 0:02:00]} 21. Rxd1 {[%emt 0:04:11]} Rxd1 {[%emt 0:00:01]} 22. Qg8+ {[%emt 0:00:22]} Rd8 {[%emt 0:00:16]} 23. Qxh7 {[%emt 0:01:12]} Rd3 {[%emt 0:02:33]} 24. Qh3+ {[%emt 0:00:25]} Kd8 {[%emt 0:00:16]} 25. Qf3 {[%emt 0:01:04]} Bb2 {[%emt 0:04:34]} 26. e5 {[%emt 0:01:37]} g5 {[%emt 0:00:52]} 27. fxg5 {[%emt 0:04:56]} Bxe5 {[%emt 0:00:28]} 28. g6 {[%emt 0:00:47]} Kc7 {[%emt 0:00:32]} 29. h4 {[%emt 0:01:15]} Bf6 {[%emt 0:00:29]} 30. h5 {[%emt 0:03:52]} Kb6 {[%emt 0:00:32]} 31. Qe4 {[%emt 0:01:17]} Rb3 {[%emt 0:00:28]} 32. g4 {[%emt 0:00:59]} Bg5 {[%emt 0:00:31]} 33. Nf4 {[%emt 0:00:10]} e5 {[%emt 0:00:31]} 34. Nd3 {[%emt 0:00:40]} Qc2+ {[%emt 0:00:30]} 35. Re2 {[%emt 0:00:10]} Qxd3 {[%emt 0:00:28]} 36. Qxd3 {[%emt 0:00:07]} Rxd3 {[%emt 0:00:02]} 37. Rxe5 {[%emt 0:00:43]} Bh4+ {[%emt 0:00:16]} 38. Ke2 {[%emt 0:00:06]} Rg3 {[%emt 0:01:13]} 39. Re4 {[%emt 0:00:21]} Rg2+ {[%emt 0:00:29]} 40. Kd1 {[%emt 0:00:49]} Bg5 {[%emt 0:00:31]} 41. g7 {[%emt 0:00:20]} Rd2+ {[%emt 0:00:01]} 42. Ke1 {[%emt 0:00:16]} Rd8 {[%emt 0:00:01]} 43. Re6 {[%emt 0:00:16]} Rg8 {[%emt 0:01:19]} 44. Rg6 {[%emt 0:00:16]} Be3 {[%emt 0:00:39]} 45. g5 {[%emt 0:00:14]} Kc5 {[%emt 0:00:31]} 46. h6 {[%emt 0:00:08]} Bd4 {[%emt 0:00:09]} 47. Rf6 {[%emt 0:00:51]} Kb5 {[%emt 0:00:51]} 48. Kf1 {[%emt 0:01:12]} Ka6 {[%emt 0:00:30]} 49. Kg2 {[%emt 0:01:08]} b5 {[%emt 0:00:30]} 50. Kf3 {[%emt 0:00:33]} Ka5 {[%emt 0:00:30]} 51. h7 {[%emt 0:00:21]} Rxg7 {[%emt 0:00:28]} 52. h8=Q {[%emt 0:00:10]} Rxg5 {[%emt 0:00:09]} 53. Qd8+ {[%emt 0:00:07]} Bb6 {[%emt 0:00:01]} 54. Qd2+ {[%emt 0:00:07]} Ka6 {[%emt 0:00:39]} 55. Qxg5 {[%emt 0:00:05]} Bd8 {[%emt 0:00:04]} 56. Rxc6+ {[%emt 0:00:06]} Kb7 {[%emt 0:00:03]} 57. Qxb5+ {[%emt 0:00:06]} 1-0